[Event "Queens Festival Europe 2022"]
[Site "Tornelo"]
[Date "2022.06.19"]
[Round "9.7"]
[White "Rahimli, Izzat"]
[Black "Stastna, Martina"]
[Result "0-1"]
[ECO "A80"]
[WhiteElo "1817"]
[BlackElo "1912"]
[Annotator "NA RC"]
[PlyCount "30"]
[EventDate "2022.06.19"]
[EventType "swiss"]
[EventCountry "NET"]
[SourceTitle "playchess.com"]
[Source "ChessBase"]
[SourceQuality "1"]
[TimeControl "180+2"]

1. d4 {[%emt 0:00:02]} d5 {[%emt 0:00:05]} 2. Nf3 {[%emt 0:00:04]} e6 {[%emt 0:00:02]} 3. e3 {[%emt 0:00:03]} f5 {[%emt 0:00:02]} 4. Bd3 {[%emt 0:00:02]} Nf6 {[%emt 0:00:01]} 5. O-O {[%emt 0:00:02]} Bd6 {[%emt 0:00:03]} 6. b3 {[%emt 0:00:02]} O-O {[%emt 0:00:04]} 7. Bb2 {[%emt 0:00:03]} Nbd7 {[%emt 0:00:04]} 8. Ne5 {[%emt 0:00:03]} c6 {[%emt 0:00:07]} 9. Nd2 {[%emt 0:00:03]} Bxe5 {[%emt 0:00:07]} 10. dxe5 {[%emt 0:00:03]} Ng4 {[%emt 0:00:02]} 11. Nf3 {[%emt 0:00:07]} Qc7 {[%emt 0:00:04]} 12. Ba3 {[%emt 0:00:05]} c5 {[%emt 0:00:07]} 13. Ng5 {[%emt 0:00:17]} Ndxe5 {[%emt 0:00:08]} 14. h3 {[%emt 0:00:04]} Nxd3 {[%emt 0:00:11]} 15. Qxd3 {[%emt 0:00:31]} Qh2# {[%emt 0:00:03]} 0-1

[Event "Queens Festival Europe 2022"]
[Site "Tornelo"]
[Date "2022.06.19"]
[Round "9.7"]
[White "Posadas, Rayelynn"]
[Black "Frundina, Yelyzaveta"]
[Result "1-0"]
[ECO "D02"]
[WhiteElo "1648"]
[BlackElo "1624"]
[Annotator "NA RC"]
[PlyCount "49"]
[EventDate "2022.06.19"]
[EventType "swiss"]
[EventCountry "NET"]
[SourceTitle "playchess.com"]
[Source "ChessBase"]
[SourceQuality "1"]
[TimeControl "180+2"]

1. Nf3 {[%emt 0:00:02]} Nf6 {[%emt 0:00:06]} 2. g3 {[%emt 0:00:04]} d5 {[%emt 0:00:04]} 3. Bg2 {[%emt 0:00:02]} c5 {[%emt 0:00:05]} 4. d4 {[%emt 0:00:01]} e6 {[%emt 0:00:05]} 5. O-O {[%emt 0:00:02]} Nbd7 {[%emt 0:00:07]} 6. c4 {[%emt 0:00:02]} Be7 {[%emt 0:00:10]} 7. Nc3 {[%emt 0:00:03]} cxd4 {[%emt 0:00:06]} 8. Nxd4 {[%emt 0:00:03]} O-O {[%emt 0:00:04]} 9. cxd5 {[%emt 0:00:04]} e5 {[%emt 0:00:12]} 10. Nf5 {[%emt 0:00:03]} Bb4 {[%emt 0:00:10]} 11. d6 {[%emt 0:00:09]} Nb6 {[%emt 0:00:12]} 12. Ne7+ {[%emt 0:00:06]} Kh8 {[%emt 0:00:07]} 13. Nxc8 {[%emt 0:00:08]} Rxc8 {[%emt 0:00:05]} 14. Qb3 {[%emt 0:00:17]} Bxd6 {[%emt 0:00:17]} 15. Rd1 {[%emt 0:00:04]} Qc7 {[%emt 0:00:10]} 16. Nb5 {[%emt 0:00:05]} Qc4 {[%emt 0:00:24]} 17. Nxd6 {[%emt 0:00:11]} Qxb3 {[%emt 0:00:09]} 18. axb3 {[%emt 0:00:02]} Rcd8 {[%emt 0:00:06]} 19. Nxf7+ {[%emt 0:00:11]} Rxf7 {[%emt 0:00:14]} 20. Rxd8+ {[%emt 0:00:02]} Ng8 {[%emt 0:00:02]} 21. Be3 {[%emt 0:00:04]} h6 {[%emt 0:00:10]} 22. Bxb6 {[%emt 0:00:04]} axb6 {[%emt 0:00:02]} 23. Bd5 {[%emt 0:00:02]} Rd7 {[%emt 0:00:12]} 24. Rxd7 {[%emt 0:00:10]} Nf6 {[%emt 0:00:03]} 25. Rd8+ {[%emt 0:00:04]} 1-0

[Event "Queens Festival Europe 2022"]
[Site "Tornelo"]
[Date "2022.06.19"]
[Round "9.7"]
[White "Rahimli, Ulkar"]
[Black "Ismayilova, Salbinaz"]
[Result "1-0"]
[ECO "D05"]
[WhiteElo "1268"]
[BlackElo "1090"]
[Annotator "NA RC"]
[PlyCount "31"]
[EventDate "2022.06.19"]
[EventType "swiss"]
[EventCountry "NET"]
[SourceTitle "playchess.com"]
[Source "ChessBase"]
[SourceQuality "1"]
[TimeControl "180+2"]

1. d4 {[%emt 0:00:02]} d5 {[%emt 0:00:05]} 2. Nf3 {[%emt 0:00:03]} e6 {[%emt 0:00:03]} 3. e3 {[%emt 0:00:02]} c5 {[%emt 0:00:03]} 4. b3 {[%emt 0:00:03]} Nc6 {[%emt 0:00:02]} 5. Bb2 {[%emt 0:00:03]} Nf6 {[%emt 0:00:03]} 6. a3 {[%emt 0:00:02]} Be7 {[%emt 0:00:03]} 7. Bd3 {[%emt 0:00:02]} O-O {[%emt 0:00:03]} 8. O-O {[%emt 0:00:02]} a6 {[%emt 0:00:03]} 9. Ne5 {[%emt 0:00:04]} Nxe5 {[%emt 0:00:03]} 10. dxe5 {[%emt 0:00:03]} Nd7 {[%emt 0:00:03]} 11. f4 {[%emt 0:00:02]} f6 {[%emt 0:00:03]} 12. Qh5 {[%emt 0:00:26]} g6 {[%emt 0:00:18]} 13. Bxg6 {[%emt 0:00:14]} hxg6 {[%emt 0:00:24]} 14. Qxg6+ {[%emt 0:00:03]} Kh8 {[%emt 0:00:07]} 15. Rf3 {[%emt 0:00:06]} Qa5 {[%emt 0:00:31]} 16. Rh3# {[%emt 0:00:05]} 1-0

[Event "Queens Festival Europe 2022"]
[Site "Tornelo"]
[Date "2022.06.19"]
[Round "9.8"]
[White "Maksimovic, Suzana"]
[Black "Smith, Olivia"]
[Result "1-0"]
[ECO "D20"]
[WhiteElo "2145"]
[BlackElo "2039"]
[Annotator "NA RC"]
[PlyCount "67"]
[EventDate "2022.06.19"]
[EventType "swiss"]
[EventCountry "NET"]
[SourceTitle "playchess.com"]
[Source "ChessBase"]
[SourceQuality "1"]
[TimeControl "180+2"]

1. d4 {[%emt 0:00:02]} d5 {[%emt 0:00:12]} 2. c4 {[%emt 0:00:04]} dxc4 {[%emt 0:00:01]} 3. e3 {[%emt 0:00:02]} e5 {[%emt 0:00:09]} 4. Bxc4 {[%emt 0:00:07]} exd4 {[%emt 0:00:10]} 5. exd4 {[%emt 0:00:03]} Nf6 {[%emt 0:00:05]} 6. Nc3 {[%emt 0:00:04]} Bd6 {[%emt 0:00:11]} 7. h3 {[%emt 0:00:04]} O-O {[%emt 0:00:04]} 8. Nge2 {[%emt 0:00:02]} h6 {[%emt 0:00:08]} 9. O-O {[%emt 0:00:12]} a6 {[%emt 0:00:03]} 10. a4 {[%emt 0:00:09]} Nc6 {[%emt 0:00:05]} 11. Be3 {[%emt 0:00:05]} Bf5 {[%emt 0:00:18]} 12. Rc1 {[%emt 0:00:03]} Qe7 {[%emt 0:00:16]} 13. Qd2 {[%emt 0:00:05]} Ne4 {[%emt 0:00:16]} 14. Nxe4 {[%emt 0:00:02]} Bxe4 {[%emt 0:00:01]} 15. Nc3 {[%emt 0:00:02]} Bg6 {[%emt 0:00:05]} 16. Rfe1 {[%emt 0:00:04]} Qh4 {[%emt 0:00:12]} 17. Nd5 {[%emt 0:00:38]} Rfe8 {[%emt 0:00:13]} 18. Bf4 {[%emt 0:00:04]} Bxf4 {[%emt 0:00:05]} 19. Nxf4 {[%emt 0:00:03]} Bf5 {[%emt 0:00:12]} 20. Re3 {[%emt 0:00:17]} Rad8 {[%emt 0:00:17]} 21. Bd5 {[%emt 0:00:19]} Rxe3 {[%emt 0:00:30]} 22. fxe3 {[%emt 0:00:09]} Qf6 {[%emt 0:00:01]} 23. Bxc6 {[%emt 0:00:16]} bxc6 {[%emt 0:00:02]} 24. Rc5 {[%emt 0:00:02]} Be4 {[%emt 0:00:02]} 25. Nd3 {[%emt 0:00:10]} Qg6 {[%emt 0:00:05]} 26. Ne5 {[%emt 0:00:03]} Qg5 {[%emt 0:00:05]} 27. Nxf7 {[%emt 0:00:10]} Qe7 {[%emt 0:00:03]} 28. Nxd8 {[%emt 0:00:04]} Qxd8 {[%emt 0:00:01]} 29. Qf2 {[%emt 0:00:04]} Qb8 {[%emt 0:00:02]} 30. Kh2 {[%emt 0:00:02]} Qb3 {[%emt 0:00:03]} 31. Re5 {[%emt 0:00:03]} Bd5 {[%emt 0:00:02]} 32. Re7 {[%emt 0:00:02]} Kh7 {[%emt 0:00:03]} 33. Qg3 {[%emt 0:00:02]} Qb4 {[%emt 0:00:04]} 34. Qxg7# {[%emt 0:00:02]} 1-0

[Event "Queens Festival Europe 2022"]
[Site "Tornelo"]
[Date "2022.06.19"]
[Round "9.8"]
[White "Stewart-Bermann, Tanya"]
[Black "Roy, Ali"]
[Result "0-1"]
[ECO "D02"]
[WhiteElo "1863"]
[BlackElo "1893"]
[Annotator "NA RC"]
[PlyCount "58"]
[EventDate "2022.06.19"]
[EventType "swiss"]
[EventCountry "NET"]
[SourceTitle "playchess.com"]
[Source "ChessBase"]
[SourceQuality "1"]
[TimeControl "180+2"]

1. d4 {[%emt 0:00:02]} d5 {[%emt 0:00:05]} 2. Bf4 {[%emt 0:00:02]} Nf6 {[%emt 0:00:03]} 3. e3 {[%emt 0:00:02]} e6 {[%emt 0:00:03]} 4. Nf3 {[%emt 0:00:02]} Be7 {[%emt 0:00:01]} 5. Nbd2 {[%emt 0:00:05]} O-O {[%emt 0:00:03]} 6. Bd3 {[%emt 0:00:05]} Nbd7 {[%emt 0:00:02]} 7. c3 {[%emt 0:00:02]} c5 {[%emt 0:00:04]} 8. Ne5 {[%emt 0:00:08]} Nxe5 {[%emt 0:00:06]} 9. dxe5 {[%emt 0:00:03]} Nd7 {[%emt 0:00:04]} 10. Nf3 {[%emt 0:00:02]} f6 {[%emt 0:00:08]} 11. Bg3 {[%emt 0:00:09]} fxe5 {[%emt 0:00:04]} 12. Bxe5 {[%emt 0:00:07]} Nxe5 {[%emt 0:00:03]} 13. Nxe5 {[%emt 0:00:03]} Bd6 {[%emt 0:00:04]} 14. Qh5 {[%emt 0:00:09]} g6 {[%emt 0:00:47]} 15. Nxg6 {[%emt 0:00:16]} Rf7 {[%emt 0:00:19]} 16. Nh4 {[%emt 0:00:32]} Qf6 {[%emt 0:00:08]} 17. Nf3 {[%emt 0:00:05]} e5 {[%emt 0:00:06]} 18. O-O-O {[%emt 0:00:46]} e4 {[%emt 0:00:05]} 19. Be2 {[%emt 0:00:03]} exf3 {[%emt 0:00:03]} 20. gxf3 {[%emt 0:00:01]} Bf5 {[%emt 0:00:08]} 21. Rhg1+ {[%emt 0:00:06]} Kf8 {[%emt 0:00:05]} 22. Bd3 {[%emt 0:00:16]} Bxd3 {[%emt 0:00:09]} 23. Rxd3 {[%emt 0:00:01]} Qf5 {[%emt 0:00:04]} 24. Qh6+ {[%emt 0:00:05]} Ke7 {[%emt 0:00:11]} 25. Rgd1 {[%emt 0:00:06]} d4 {[%emt 0:00:08]} 26. exd4 {[%emt 0:00:05]} cxd4 {[%emt 0:00:03]} 27. Rxd4 {[%emt 0:00:02]} Bf4+ {[%emt 0:00:03]} 28. R4d2 {[%emt 0:00:11]} Bxh6 {[%emt 0:00:04]} 29. Re1+ {[%emt 0:00:04]} Kf8 {[%emt 0:00:05]} 0-1

[Event "Queens Festival Europe 2022"]
[Site "Tornelo"]
[Date "2022.06.19"]
[Round "9.9"]
[White "Grimaldi, Angela Flavia"]
[Black "Arora, Tashika"]
[Result "1-0"]
[ECO "C55"]
[WhiteElo "1995"]
[BlackElo "1822"]
[Annotator "NA RC"]
[PlyCount "73"]
[EventDate "2022.06.19"]
[EventType "swiss"]
[EventCountry "NET"]
[SourceTitle "playchess.com"]
[Source "ChessBase"]
[SourceQuality "1"]
[TimeControl "180+2"]

1. e4 {[%emt 0:00:02]} e5 {[%emt 0:00:04]} 2. Nf3 {[%emt 0:00:03]} Nc6 {[%emt 0:00:02]} 3. Bc4 {[%emt 0:00:02]} Nf6 {[%emt 0:00:02]} 4. d3 {[%emt 0:00:02]} Be7 {[%emt 0:00:05]} 5. c3 {[%emt 0:00:02]} O-O {[%emt 0:00:02]} 6. Nbd2 {[%emt 0:00:02]} b6 {[%emt 0:00:03]} 7. O-O {[%emt 0:00:03]} Bb7 {[%emt 0:00:02]} 8. Bb3 {[%emt 0:00:01]} d6 {[%emt 0:00:08]} 9. Nc4 {[%emt 0:00:02]} b5 {[%emt 0:00:06]} 10. Ne3 {[%emt 0:00:03]} a5 {[%emt 0:00:08]} 11. a4 {[%emt 0:00:04]} b4 {[%emt 0:00:06]} 12. Re1 {[%emt 0:00:18]} Rb8 {[%emt 0:00:06]} 13. Bc4 {[%emt 0:00:04]} Na7 {[%emt 0:00:06]} 14. cxb4 {[%emt 0:00:19]} axb4 {[%emt 0:00:03]} 15. Nf5 {[%emt 0:00:17]} Nc6 {[%emt 0:00:14]} 16. a5 {[%emt 0:00:10]} Ra8 {[%emt 0:00:07]} 17. a6 {[%emt 0:00:03]} Bc8 {[%emt 0:00:04]} 18. Bg5 {[%emt 0:00:46]} Bxf5 {[%emt 0:00:04]} 19. exf5 {[%emt 0:00:02]} d5 {[%emt 0:00:13]} 20. Bb5 {[%emt 0:00:05]} Na7 {[%emt 0:00:02]} 21. Ba4 {[%emt 0:00:11]} e4 {[%emt 0:00:15]} 22. Nd4 {[%emt 0:00:26]} c5 {[%emt 0:00:19]} 23. Nc2 {[%emt 0:00:22]} Qc8 {[%emt 0:00:08]} 24. d4 {[%emt 0:00:10]} Qxf5 {[%emt 0:00:07]} 25. Bxf6 {[%emt 0:00:03]} Bxf6 {[%emt 0:00:05]} 26. dxc5 {[%emt 0:00:04]} Bxb2 {[%emt 0:00:02]} 27. Rb1 {[%emt 0:00:02]} Bc3 {[%emt 0:00:02]} 28. Re3 {[%emt 0:00:03]} d4 {[%emt 0:00:11]} 29. Nxd4 {[%emt 0:00:02]} Qxc5 {[%emt 0:00:09]} 30. Nb3 {[%emt 0:00:03]} Qf5 {[%emt 0:00:09]} 31. Qe2 {[%emt 0:00:03]} Nb5 {[%emt 0:00:16]} 32. Bxb5 {[%emt 0:00:02]} Rfb8 {[%emt 0:00:13]} 33. Bc4 {[%emt 0:00:02]} Re8 {[%emt 0:00:08]} 34. Rd1 {[%emt 0:00:02]} Qf4 {[%emt 0:00:12]} 35. Nd4 {[%emt 0:00:03]} Rad8 {[%emt 0:00:06]} 36. Nc2 {[%emt 0:00:03]} Rxd1+ {[%emt 0:00:03]} 37. Qxd1 {[%emt 0:00:00]} 1-0

[Event "Queens Festival Europe 2022"]
[Site "Tornelo"]
[Date "2022.06.19"]
[Round "9.9"]
[White "Jafarova, Aysel"]
[Black "Pyun, Lindsay"]
[Result "1-0"]
[ECO "D12"]
[WhiteElo "1481"]
[BlackElo "1526"]
[Annotator "NA RC"]
[PlyCount "61"]
[EventDate "2022.06.19"]
[EventType "swiss"]
[EventCountry "NET"]
[SourceTitle "playchess.com"]
[Source "ChessBase"]
[SourceQuality "1"]
[TimeControl "180+2"]

1. d4 {[%emt 0:00:02]} d5 {[%emt 0:00:07]} 2. c4 {[%emt 0:00:02]} c6 {[%emt 0:00:02]} 3. Nf3 {[%emt 0:00:01]} Nf6 {[%emt 0:00:02]} 4. e3 {[%emt 0:00:01]} Bf5 {[%emt 0:00:07]} 5. Nc3 {[%emt 0:00:02]} e6 {[%emt 0:00:01]} 6. Qb3 {[%emt 0:00:02]} Qc7 {[%emt 0:00:10]} 7. Be2 {[%emt 0:00:07]} Be7 {[%emt 0:00:04]} 8. O-O {[%emt 0:00:02]} O-O {[%emt 0:00:02]} 9. cxd5 {[%emt 0:00:02]} cxd5 {[%emt 0:00:04]} 10. Bd2 {[%emt 0:00:03]} a6 {[%emt 0:00:02]} 11. Rac1 {[%emt 0:00:05]} Qd7 {[%emt 0:00:02]} 12. Ne5 {[%emt 0:00:02]} Qd6 {[%emt 0:00:18]} 13. Na4 {[%emt 0:00:13]} b5 {[%emt 0:00:06]} 14. Nc5 {[%emt 0:00:05]} Nbd7 {[%emt 0:00:03]} 15. Ncxd7 {[%emt 0:00:05]} Nxd7 {[%emt 0:00:05]} 16. Rc6 {[%emt 0:00:02]} Qb8 {[%emt 0:00:21]} 17. Nxd7 {[%emt 0:00:02]} Qb7 {[%emt 0:00:01]} 18. Rfc1 {[%emt 0:00:42]} Qxd7 {[%emt 0:00:05]} 19. Rc7 {[%emt 0:00:01]} Qd6 {[%emt 0:00:05]} 20. a3 {[%emt 0:00:06]} Rfe8 {[%emt 0:00:20]} 21. Bb4 {[%emt 0:00:12]} Qd8 {[%emt 0:00:02]} 22. Bxe7 {[%emt 0:00:23]} Rxe7 {[%emt 0:00:02]} 23. Rxe7 {[%emt 0:00:03]} Qxe7 {[%emt 0:00:00]} 24. Qc3 {[%emt 0:00:02]} h6 {[%emt 0:00:11]} 25. Qc6 {[%emt 0:00:05]} Qa7 {[%emt 0:00:14]} 26. h3 {[%emt 0:00:04]} Rb8 {[%emt 0:00:02]} 27. Qd6 {[%emt 0:00:13]} Rb6 {[%emt 0:00:09]} 28. Rc8+ {[%emt 0:00:03]} Kh7 {[%emt 0:00:03]} 29. Qf8 {[%emt 0:00:03]} Rb7 {[%emt 0:00:10]} 30. Bh5 {[%emt 0:00:06]} g6 {[%emt 0:01:00]} 31. Qh8# {[%emt 0:00:03]} 1-0

[Event "Queens Festival Europe 2022"]
[Site "Tornelo"]
[Date "2022.06.19"]
[Round "9.10"]
[White "Caku, Kler"]
[Black "Kusova, Nikola"]
[Result "1-0"]
[ECO "C42"]
[WhiteElo "1542"]
[BlackElo "1250"]
[Annotator "NA RC"]
[PlyCount "113"]
[EventDate "2022.06.19"]
[EventType "swiss"]
[EventCountry "NET"]
[SourceTitle "playchess.com"]
[Source "ChessBase"]
[SourceQuality "1"]
[TimeControl "180+2"]

1. e4 {[%emt 0:00:02]} e5 {[%emt 0:00:06]} 2. Nf3 {[%emt 0:00:03]} Nf6 {[%emt 0:00:03]} 3. Nxe5 {[%emt 0:00:02]} d6 {[%emt 0:00:03]} 4. Nf3 {[%emt 0:00:01]} Nxe4 {[%emt 0:00:02]} 5. c3 {[%emt 0:00:02]} Nf6 {[%emt 0:00:02]} 6. d4 {[%emt 0:00:04]} d5 {[%emt 0:00:02]} 7. Be2 {[%emt 0:00:05]} Be7 {[%emt 0:00:04]} 8. O-O {[%emt 0:00:04]} O-O {[%emt 0:00:01]} 9. Nbd2 {[%emt 0:00:04]} Nc6 {[%emt 0:00:03]} 10. Nb3 {[%emt 0:00:03]} Be6 {[%emt 0:00:04]} 11. Bf4 {[%emt 0:00:06]} Bd6 {[%emt 0:00:07]} 12. Bxd6 {[%emt 0:00:08]} Qxd6 {[%emt 0:00:02]} 13. Nc5 {[%emt 0:00:01]} b6 {[%emt 0:00:03]} 14. Nxe6 {[%emt 0:00:03]} Qxe6 {[%emt 0:00:02]} 15. Re1 {[%emt 0:00:05]} Qd6 {[%emt 0:00:02]} 16. Bd3 {[%emt 0:00:06]} Rfe8 {[%emt 0:00:03]} 17. Qc2 {[%emt 0:00:12]} Rad8 {[%emt 0:00:04]} 18. a4 {[%emt 0:00:08]} a5 {[%emt 0:00:04]} 19. Ng5 {[%emt 0:00:23]} g6 {[%emt 0:00:10]} 20. Nf3 {[%emt 0:00:06]} Re6 {[%emt 0:00:12]} 21. Rxe6 {[%emt 0:00:04]} Qxe6 {[%emt 0:00:03]} 22. Re1 {[%emt 0:00:02]} Qd7 {[%emt 0:00:09]} 23. Bb5 {[%emt 0:00:07]} Re8 {[%emt 0:00:12]} 24. Ne5 {[%emt 0:00:16]} Qd6 {[%emt 0:00:04]} 25. Qd2 {[%emt 0:00:34]} Ne4 {[%emt 0:00:26]} 26. Qd1 {[%emt 0:00:23]} Qf6 {[%emt 0:01:00]} 27. f3 {[%emt 0:00:10]} Nxe5 {[%emt 0:00:06]} 28. dxe5 {[%emt 0:00:11]} Rxe5 {[%emt 0:00:16]} 29. fxe4 {[%emt 0:00:03]} dxe4 {[%emt 0:00:04]} 30. Qd4 {[%emt 0:00:07]} e3 {[%emt 0:00:08]} 31. Rxe3 {[%emt 0:00:07]} Rf5 {[%emt 0:00:05]} 32. Qxf6 {[%emt 0:00:04]} Rxf6 {[%emt 0:00:01]} 33. Re7 {[%emt 0:00:06]} c6 {[%emt 0:00:02]} 34. Bc4 {[%emt 0:00:01]} Kg7 {[%emt 0:00:04]} 35. Re1 {[%emt 0:00:04]} b5 {[%emt 0:00:02]} 36. axb5 {[%emt 0:00:01]} cxb5 {[%emt 0:00:02]} 37. Bxb5 {[%emt 0:00:00]} Rb6 {[%emt 0:00:02]} 38. c4 {[%emt 0:00:01]} Rd6 {[%emt 0:00:03]} 39. Ra1 {[%emt 0:00:03]} Rd2 {[%emt 0:00:03]} 40. b3 {[%emt 0:00:01]} Rb2 {[%emt 0:00:03]} 41. Ra3 {[%emt 0:00:02]} Rb1+ {[%emt 0:00:03]} 42. Kf2 {[%emt 0:00:02]} Rb2+ {[%emt 0:00:01]} 43. Kg3 {[%emt 0:00:02]} Rd2 {[%emt 0:00:05]} 44. c5 {[%emt 0:00:03]} Rd4 {[%emt 0:00:02]} 45. Rxa5 {[%emt 0:00:02]} Rd5 {[%emt 0:00:02]} 46. c6 {[%emt 0:00:02]} Rc5 {[%emt 0:00:02]} 47. b4 {[%emt 0:00:02]} Rc3+ {[%emt 0:00:03]} 48. Kf2 {[%emt 0:00:03]} Rc2+ {[%emt 0:00:02]} 49. Be2 {[%emt 0:00:02]} Rxc6 {[%emt 0:00:02]} 50. b5 {[%emt 0:00:01]} Rb6 {[%emt 0:00:02]} 51. Ra6 {[%emt 0:00:02]} Rxa6 {[%emt 0:00:02]} 52. bxa6 {[%emt 0:00:01]} Kh6 {[%emt 0:00:02]} 53. a7 {[%emt 0:00:00]} f5 {[%emt 0:00:03]} 54. a8=Q {[%emt 0:00:00]} g5 {[%emt 0:00:03]} 55. Qf8+ {[%emt 0:00:03]} Kg6 {[%emt 0:00:01]} 56. g4 {[%emt 0:00:02]} fxg4 {[%emt 0:00:03]} 57. Bxg4 {[%emt 0:00:03]} 1-0

[Event "Queens Festival Europe 2022"]
[Site "Tornelo"]
[Date "2022.06.19"]
[Round "9.11"]
[White "McCormick, Polly"]
[Black "Andries, Leia"]
[Result "0-1"]
[ECO "B21"]
[WhiteElo "1222"]
[BlackElo "1438"]
[Annotator "NA RC"]
[PlyCount "80"]
[EventDate "2022.06.19"]
[EventType "swiss"]
[EventCountry "NET"]
[SourceTitle "playchess.com"]
[Source "ChessBase"]
[SourceQuality "1"]
[TimeControl "180+2"]

1. e4 {[%emt 0:00:02]} c5 {[%emt 0:00:05]} 2. Be2 {[%emt 0:00:04]} Nc6 {[%emt 0:00:03]} 3. d3 {[%emt 0:00:01]} g6 {[%emt 0:00:03]} 4. f4 {[%emt 0:00:02]} Bg7 {[%emt 0:00:02]} 5. Nf3 {[%emt 0:00:01]} d6 {[%emt 0:00:01]} 6. O-O {[%emt 0:00:02]} e6 {[%emt 0:00:06]} 7. c3 {[%emt 0:00:01]} Nge7 {[%emt 0:00:06]} 8. Qe1 {[%emt 0:00:02]} O-O {[%emt 0:00:03]} 9. Qh4 {[%emt 0:00:03]} d5 {[%emt 0:00:07]} 10. Ng5 {[%emt 0:00:13]} h6 {[%emt 0:00:06]} 11. Nf3 {[%emt 0:00:03]} dxe4 {[%emt 0:00:01]} 12. dxe4 {[%emt 0:00:02]} f5 {[%emt 0:00:11]} 13. exf5 {[%emt 0:00:06]} exf5 {[%emt 0:00:02]} 14. Bc4+ {[%emt 0:00:10]} Kh7 {[%emt 0:00:10]} 15. Ng5+ {[%emt 0:00:03]} Kh8 {[%emt 0:00:10]} 16. Nf7+ {[%emt 0:00:02]} Rxf7 {[%emt 0:00:01]} 17. Bxf7 {[%emt 0:00:02]} Qf8 {[%emt 0:00:12]} 18. Bb3 {[%emt 0:00:05]} Bf6 {[%emt 0:00:04]} 19. Qh3 {[%emt 0:00:06]} Kg7 {[%emt 0:00:04]} 20. Rf3 {[%emt 0:00:13]} a5 {[%emt 0:00:11]} 21. g3 {[%emt 0:00:31]} b5 {[%emt 0:00:09]} 22. Bc2 {[%emt 0:00:11]} Bb7 {[%emt 0:00:05]} 23. Rd3 {[%emt 0:00:09]} Bc8 {[%emt 0:00:32]} 24. Rd1 {[%emt 0:00:09]} Qf7 {[%emt 0:00:09]} 25. Be3 {[%emt 0:00:07]} c4 {[%emt 0:00:04]} 26. Bc5 {[%emt 0:00:05]} Nd5 {[%emt 0:00:09]} 27. Nd2 {[%emt 0:00:17]} Be7 {[%emt 0:00:06]} 28. Bxe7 {[%emt 0:00:11]} Ncxe7 {[%emt 0:00:01]} 29. Nf3 {[%emt 0:00:05]} Ne3 {[%emt 0:00:02]} 30. Rd2 {[%emt 0:00:05]} Bb7 {[%emt 0:00:04]} 31. Ne5 {[%emt 0:00:06]} Qe6 {[%emt 0:00:05]} 32. Re2 {[%emt 0:00:06]} N7d5 {[%emt 0:00:02]} 33. Rae1 {[%emt 0:00:12]} Rd8 {[%emt 0:00:07]} 34. g4 {[%emt 0:00:05]} Bc8 {[%emt 0:00:20]} 35. gxf5 {[%emt 0:00:01]} gxf5 {[%emt 0:00:10]} 36. Qg3+ {[%emt 0:00:06]} Kh7 {[%emt 0:00:01]} 37. Rxe3 {[%emt 0:00:07]} Nxe3 {[%emt 0:00:02]} 38. Rxe3 {[%emt 0:00:02]} Rg8 {[%emt 0:00:01]} 39. Bxf5+ {[%emt 0:00:19]} Qxf5 {[%emt 0:00:05]} 40. Qxg8+ {[%emt 0:00:02]} Kxg8 {[%emt 0:00:00]} 0-1

[Event "Queens Festival Europe 2022"]
[Site "Tornelo"]
[Date "2022.06.19"]
[Round "9.13"]
[White "Tani, Selina"]
[Black "Bruntse, Caroline Lindegaard"]
[Result "1-0"]
[ECO "B72"]
[WhiteElo "1146"]
[BlackElo "1503"]
[Annotator "NA RC"]
[PlyCount "67"]
[EventDate "2022.06.19"]
[EventType "swiss"]
[EventCountry "NET"]
[SourceTitle "playchess.com"]
[Source "ChessBase"]
[SourceQuality "1"]
[TimeControl "180+2"]

1. e4 {[%emt 0:00:02]} c5 {[%emt 0:00:07]} 2. Nf3 {[%emt 0:00:03]} d6 {[%emt 0:00:02]} 3. d4 {[%emt 0:00:02]} cxd4 {[%emt 0:00:03]} 4. Nxd4 {[%emt 0:00:01]} Nf6 {[%emt 0:00:02]} 5. Nc3 {[%emt 0:00:03]} g6 {[%emt 0:00:02]} 6. Bc4 {[%emt 0:00:04]} Bg7 {[%emt 0:00:02]} 7. O-O {[%emt 0:00:03]} O-O {[%emt 0:00:02]} 8. f4 {[%emt 0:00:12]} Nc6 {[%emt 0:00:06]} 9. Be3 {[%emt 0:00:09]} Bg4 {[%emt 0:00:13]} 10. Qd2 {[%emt 0:00:27]} Rc8 {[%emt 0:00:11]} 11. Nxc6 {[%emt 0:00:09]} Rxc6 {[%emt 0:00:08]} 12. Bb5 {[%emt 0:00:07]} Rc8 {[%emt 0:00:10]} 13. Qf2 {[%emt 0:00:20]} a6 {[%emt 0:00:08]} 14. Bd3 {[%emt 0:00:08]} b5 {[%emt 0:00:21]} 15. Nd5 {[%emt 0:00:08]} Nxd5 {[%emt 0:00:09]} 16. exd5 {[%emt 0:00:02]} Bxb2 {[%emt 0:00:04]} 17. Rab1 {[%emt 0:00:01]} Bg7 {[%emt 0:00:03]} 18. Rfc1 {[%emt 0:00:21]} Bd7 {[%emt 0:00:06]} 19. c4 {[%emt 0:00:05]} Qa5 {[%emt 0:00:19]} 20. cxb5 {[%emt 0:00:03]} Bxb5 {[%emt 0:00:05]} 21. Bxb5 {[%emt 0:00:04]} axb5 {[%emt 0:00:03]} 22. Bb6 {[%emt 0:00:04]} Qa6 {[%emt 0:00:15]} 23. Be3 {[%emt 0:00:07]} Rxc1+ {[%emt 0:00:11]} 24. Rxc1 {[%emt 0:00:02]} Rc8 {[%emt 0:00:04]} 25. Rb1 {[%emt 0:00:07]} Rb8 {[%emt 0:00:14]} 26. Qe2 {[%emt 0:00:02]} Qb7 {[%emt 0:00:06]} 27. a4 {[%emt 0:00:04]} b4 {[%emt 0:00:03]} 28. Rb3 {[%emt 0:00:04]} Qxd5 {[%emt 0:00:09]} 29. Qc2 {[%emt 0:00:20]} Bc3 {[%emt 0:00:10]} 30. Ba7 {[%emt 0:00:08]} Ra8 {[%emt 0:00:05]} 31. Be3 {[%emt 0:00:09]} Qc4 {[%emt 0:00:13]} 32. h3 {[%emt 0:00:16]} Qd5 {[%emt 0:00:05]} 33. Kh2 {[%emt 0:00:02]} Bd4 {[%emt 0:00:03]} 34. Rd3 {[%emt 0:00:05]} 1-0